[Event "Early-Titled-Tuesday-Blitz-May-14-2024"]
[Site "Chess.com"]
[Date "2024.05.14"]
[Round "2"]
[White "Maluco_do_Natal_00"]
[Black "DominguezOnYoutube"]
[Result "0-1"]
[WhiteElo "2026"]
[BlackElo "3002"]
[TimeControl "180+1"]
[EndTime "8:17:45 PDT"]
[Termination "DominguezOnYoutube won on time"]

1. e4 {[%clk 0:03:00.9]} 1... c5 {[%clk 0:02:59.7]} 2. Nf3 {[%clk 0:02:59.6]}
2... d6 {[%clk 0:03:00.3]} 3. d4 {[%clk 0:02:59.2]} 3... cxd4 {[%clk 0:03:00.7]}
4. Nxd4 {[%clk 0:03:00.1]} 4... Nf6 {[%clk 0:03:01.1]} 5. Nc3 {[%clk 0:02:58.4]}
5... a6 {[%clk 0:03:01.7]} 6. Be3 {[%clk 0:02:57.4]} 6... e5 {[%clk 0:03:01.7]}
7. Nb3 {[%clk 0:02:57.2]} 7... Be6 {[%clk 0:03:02.1]} 8. f3 {[%clk 0:02:57.2]}
8... h5 {[%clk 0:03:02.5]} 9. Qd2 {[%clk 0:02:55.1]} 9... Nbd7 {[%clk
0:03:02.4]} 10. h3 {[%clk 0:02:33.1]} 10... Be7 {[%clk 0:02:57.9]} 11. O-O-O
{[%clk 0:02:27.3]} 11... Rc8 {[%clk 0:02:56.6]} 12. Kb1 {[%clk 0:02:24.8]} 12...
b5 {[%clk 0:02:54.7]} 13. a3 {[%clk 0:02:20.3]} 13... Nb6 {[%clk 0:02:50.7]} 14.
Na5 {[%clk 0:02:14.9]} 14... Qc7 {[%clk 0:02:46.6]} 15. f4 {[%clk 0:02:09.6]}
15... h4 {[%clk 0:01:26.6]} 16. f5 {[%clk 0:01:51.8]} 16... Bd7 {[%clk
0:01:26.1]} 17. Qf2 {[%clk 0:01:21.4]} 17... Na4 {[%clk 0:01:18.1]} 18. Nxa4
{[%clk 0:01:07]} 18... Nxe4 {[%clk 0:01:17.9]} 19. Qe1 {[%clk 0:00:50.2]} 19...
Qxc2+ {[%clk 0:00:58.1]} 20. Ka1 {[%clk 0:00:39.8]} 20... Qxa4 {[%clk
0:00:57.4]} 21. Nb7 {[%clk 0:00:34]} 21... d5 {[%clk 0:00:46.9]} 22. Bc1 {[%clk
0:00:13.7]} 22... O-O {[%clk 0:00:38.5]} 23. Bd3 {[%clk 0:00:13.3]} 23... Bxf5
{[%clk 0:00:35.7]} 24. Bxe4 {[%clk 0:00:11]} 24... Bxe4 {[%clk 0:00:35.4]} 25.
Qa5 {[%clk 0:00:10.6]} 25... Qc2 {[%clk 0:00:34.1]} 26. Bd2 {[%clk 0:00:07.2]}
26... d4 {[%clk 0:00:31.2]} 27. Bb4 {[%clk 0:00:06.8]} 27... Bd5 {[%clk
0:00:24.7]} 28. Nc5 {[%clk 0:00:02.2]} 28... Bxc5 {[%clk 0:00:23.8]} 29. Bxc5
{[%clk 0:00:02.4]} 29... Qb3 {[%clk 0:00:23.5]} 0-1

[Event "Early-Titled-Tuesday-Blitz-May-14-2024"]
[Site "Chess.com"]
[Date "2024.05.14"]
[Round "2"]
[White "ploxoi"]
[Black "djano"]
[Result "1-0"]
[WhiteElo "2332"]
[BlackElo "2527"]
[TimeControl "180+1"]
[EndTime "8:17:46 PDT"]
[Termination "ploxoi won by checkmate"]

1. d4 {[%clk 0:03:00.4]} 1... Nf6 {[%clk 0:02:58]} 2. c4 {[%clk 0:03:00]} 2...
g6 {[%clk 0:02:57.4]} 3. g3 {[%clk 0:02:58.4]} 3... Bg7 {[%clk 0:02:57.1]} 4.
Bg2 {[%clk 0:02:59.1]} 4... O-O {[%clk 0:02:57.2]} 5. Nc3 {[%clk 0:02:59.8]}
5... Nc6 {[%clk 0:02:55.2]} 6. Nf3 {[%clk 0:02:59.8]} 6... d6 {[%clk 0:02:54.9]}
7. O-O {[%clk 0:03:00]} 7... e5 {[%clk 0:02:55]} 8. d5 {[%clk 0:03:00.6]} 8...
Na5 {[%clk 0:02:55]} 9. b3 {[%clk 0:02:46.1]} 9... c5 {[%clk 0:02:54]} 10. e4
{[%clk 0:02:44.6]} 10... a6 {[%clk 0:02:53.5]} 11. a4 {[%clk 0:02:34.4]} 11...
Nh5 {[%clk 0:02:45.6]} 12. Ne1 {[%clk 0:02:30.1]} 12... Kh8 {[%clk 0:02:37.2]}
13. Nd3 {[%clk 0:02:27.8]} 13... f5 {[%clk 0:02:35.8]} 14. Ra2 {[%clk
0:01:23.7]} 14... f4 {[%clk 0:02:31.4]} 15. Re1 {[%clk 0:01:16.2]} 15... Bd7
{[%clk 0:02:16.7]} 16. Bf3 {[%clk 0:01:08.7]} 16... fxg3 {[%clk 0:02:12.4]} 17.
fxg3 {[%clk 0:01:07.8]} 17... Nf6 {[%clk 0:02:12.2]} 18. Kg2 {[%clk 0:01:04.1]}
18... h5 {[%clk 0:02:11.9]} 19. Bg5 {[%clk 0:01:02.4]} 19... Qb6 {[%clk
0:02:10.7]} 20. Nc1 {[%clk 0:00:53]} 20... Rf7 {[%clk 0:02:09.4]} 21. Rf2 {[%clk
0:00:50.6]} 21... Raf8 {[%clk 0:02:08.2]} 22. Ref1 {[%clk 0:00:51]} 22... Nh7
{[%clk 0:02:03.1]} 23. Bd2 {[%clk 0:00:51]} 23... Qd8 {[%clk 0:01:58.6]} 24. Qe1
{[%clk 0:00:50.5]} 24... b6 {[%clk 0:01:56.6]} 25. Bd1 {[%clk 0:00:49.2]} 25...
Kg8 {[%clk 0:01:50.1]} 26. Nd3 {[%clk 0:00:47]} 26... Qc8 {[%clk 0:01:47.8]} 27.
Rxf7 {[%clk 0:00:41.9]} 27... Rxf7 {[%clk 0:01:48.7]} 28. Rxf7 {[%clk 0:00:37]}
28... Kxf7 {[%clk 0:01:49.6]} 29. Ne2 {[%clk 0:00:34.1]} 29... Bh3+ {[%clk
0:01:47.3]} 30. Kh1 {[%clk 0:00:31.7]} 30... Bg4 {[%clk 0:01:48.2]} 31. Ng1
{[%clk 0:00:28.1]} 31... Nf6 {[%clk 0:01:46.8]} 32. Nf2 {[%clk 0:00:22.2]} 32...
Bxd1 {[%clk 0:01:41.9]} 33. Qxd1 {[%clk 0:00:23.1]} 33... Nb7 {[%clk 0:01:40.4]}
34. Kg2 {[%clk 0:00:22.2]} 34... Qd7 {[%clk 0:01:39.7]} 35. Nf3 {[%clk
0:00:22.5]} 35... b5 {[%clk 0:01:39.6]} 36. Ng5+ {[%clk 0:00:22.1]} 36... Ke7
{[%clk 0:01:38.9]} 37. axb5 {[%clk 0:00:18.7]} 37... axb5 {[%clk 0:01:38.3]} 38.
Ne6 {[%clk 0:00:19.4]} 38... Kf7 {[%clk 0:01:37.7]} 39. Nh3 {[%clk 0:00:17.6]}
39... Kg8 {[%clk 0:01:33]} 40. Qa1 {[%clk 0:00:15.2]} 40... Nxe4 {[%clk
0:01:16.6]} 41. Qa8+ {[%clk 0:00:10.8]} 41... Kf7 {[%clk 0:01:16.7]} 42. Nhg5+
{[%clk 0:00:06.8]} 42... Nxg5 {[%clk 0:01:16.8]} 43. Nxg5+ {[%clk 0:00:07.7]}
43... Kf6 {[%clk 0:01:17.2]} 44. Ne4+ {[%clk 0:00:07.5]} 44... Kf5 {[%clk
0:01:12.8]} 45. Qxb7 {[%clk 0:00:07.7]} 45... Qxb7 {[%clk 0:01:11.8]} 46. Nxd6+
{[%clk 0:00:07.2]} 46... Kg4 {[%clk 0:01:09.6]} 47. Nxb7 {[%clk 0:00:08.1]}
47... bxc4 {[%clk 0:01:09.5]} 48. Nd6 {[%clk 0:00:07.3]} 48... cxb3 {[%clk
0:01:08.3]} 49. h3# {[%clk 0:00:07.8]} 1-0

[Event "Early-Titled-Tuesday-Blitz-May-14-2024"]
[Site "Chess.com"]
[Date "2024.05.14"]
[Round "2"]
[White "luggevoila"]
[Black "Andrey_Klymchuk"]
[Result "0-1"]
[WhiteElo "2329"]
[BlackElo "2711"]
[TimeControl "180+1"]
[EndTime "8:17:47 PDT"]
[Termination "Andrey_Klymchuk won by resignation"]

1. e4 {[%clk 0:03:00.9]} 1... c5 {[%clk 0:02:59.2]} 2. Nc3 {[%clk 0:02:59.5]}
2... Nc6 {[%clk 0:02:58.7]} 3. Nf3 {[%clk 0:02:58.5]} 3... g6 {[%clk 0:02:58.5]}
4. Bb5 {[%clk 0:02:55.8]} 4... Bg7 {[%clk 0:02:58.1]} 5. Bxc6 {[%clk 0:02:54.2]}
5... bxc6 {[%clk 0:02:57]} 6. d3 {[%clk 0:02:54.8]} 6... d6 {[%clk 0:02:56.2]}
7. h3 {[%clk 0:02:49.1]} 7... Rb8 {[%clk 0:02:53.9]} 8. O-O {[%clk 0:02:45.9]}
8... e5 {[%clk 0:02:53]} 9. Ne2 {[%clk 0:02:42.8]} 9... Ne7 {[%clk 0:02:50]} 10.
c3 {[%clk 0:02:40.4]} 10... O-O {[%clk 0:02:46.6]} 11. d4 {[%clk 0:02:40.8]}
11... cxd4 {[%clk 0:02:44]} 12. cxd4 {[%clk 0:02:40.9]} 12... exd4 {[%clk
0:02:44.2]} 13. Nexd4 {[%clk 0:02:40.7]} 13... c5 {[%clk 0:02:29.9]} 14. Nc2
{[%clk 0:02:31]} 14... f5 {[%clk 0:02:22.5]} 15. exf5 {[%clk 0:02:19.2]} 15...
Nxf5 {[%clk 0:02:18.1]} 16. Rb1 {[%clk 0:02:09.8]} 16... Bb7 {[%clk 0:01:56.1]}
17. Bf4 {[%clk 0:01:49.6]} 17... Kh8 {[%clk 0:01:43.9]} 18. Re1 {[%clk
0:01:43.8]} 18... Qd7 {[%clk 0:01:35.9]} 19. Ng5 {[%clk 0:01:36.8]} 19... Rbe8
{[%clk 0:01:24]} 20. Qg4 {[%clk 0:01:33.5]} 20... h6 {[%clk 0:01:14.3]} 21. Nf3
{[%clk 0:01:23.1]} 21... Rxe1+ {[%clk 0:01:03.4]} 22. Rxe1 {[%clk 0:01:21.7]}
22... Qf7 {[%clk 0:01:03.3]} 23. Bc1 {[%clk 0:01:03.8]} 23... h5 {[%clk
0:00:55.9]} 24. Qf4 {[%clk 0:00:38]} 24... Qxa2 {[%clk 0:00:43.7]} 25. Ng5
{[%clk 0:00:25.3]} 25... Qb3 {[%clk 0:00:23.8]} 26. Ne6 {[%clk 0:00:19.5]} 26...
Bh6 {[%clk 0:00:20.6]} 27. Qxh6+ {[%clk 0:00:03.5]} 27... Nxh6 {[%clk
0:00:20.3]} 28. Nxf8 {[%clk 0:00:04.1]} 28... Qxc2 {[%clk 0:00:19.5]} 29. Nxg6+
{[%clk 0:00:04.4]} 29... Qxg6 {[%clk 0:00:19.2]} 0-1

[Event "Early-Titled-Tuesday-Blitz-May-14-2024"]
[Site "Chess.com"]
[Date "2024.05.14"]
[Round "2"]
[White "DarZay"]
[Black "AlexanderKing"]
[Result "0-1"]
[WhiteElo "2339"]
[BlackElo "2555"]
[TimeControl "180+1"]
[EndTime "8:17:48 PDT"]
[Termination "AlexanderKing won by resignation"]

1. e4 {[%clk 0:02:59.1]} 1... c5 {[%clk 0:03:00]} 2. Nf3 {[%clk 0:02:58.3]} 2...
e6 {[%clk 0:03:00.1]} 3. d4 {[%clk 0:02:57.5]} 3... cxd4 {[%clk 0:03:01]} 4.
Nxd4 {[%clk 0:02:57.7]} 4... a6 {[%clk 0:03:01.4]} 5. c4 {[%clk 0:02:57.2]} 5...
Nf6 {[%clk 0:03:00.5]} 6. Nc3 {[%clk 0:02:57]} 6... Bb4 {[%clk 0:02:55.2]} 7.
Bd3 {[%clk 0:02:49.2]} 7... Nc6 {[%clk 0:02:52.7]} 8. Nxc6 {[%clk 0:02:45.8]}
8... dxc6 {[%clk 0:02:53.6]} 9. O-O {[%clk 0:02:44]} 9... e5 {[%clk 0:02:52.5]}
10. Qc2 {[%clk 0:02:40]} 10... Be6 {[%clk 0:02:47.5]} 11. a3 {[%clk 0:02:36]}
11... Bc5 {[%clk 0:02:35.1]} 12. b4 {[%clk 0:02:24.9]} 12... Bd4 {[%clk
0:02:32.8]} 13. Rb1 {[%clk 0:02:24.6]} 13... h6 {[%clk 0:02:06.3]} 14. Ne2
{[%clk 0:02:21.9]} 14... Ba7 {[%clk 0:01:57.9]} 15. c5 {[%clk 0:02:15.9]} 15...
O-O {[%clk 0:01:39.2]} 16. Bb2 {[%clk 0:02:12.3]} 16... Bb8 {[%clk 0:01:38.9]}
17. Ng3 {[%clk 0:02:07.6]} 17... Qe7 {[%clk 0:01:32.6]} 18. Bc4 {[%clk
0:01:59.9]} 18... Rd8 {[%clk 0:01:27.5]} 19. Rbd1 {[%clk 0:01:57.7]} 19... Bc7
{[%clk 0:01:21.2]} 20. Qb3 {[%clk 0:01:57.2]} 20... Bxc4 {[%clk 0:01:06.5]} 21.
Qxc4 {[%clk 0:01:56.4]} 21... g6 {[%clk 0:01:06.4]} 22. Bc1 {[%clk 0:01:30.7]}
22... Kg7 {[%clk 0:00:48.5]} 23. h3 {[%clk 0:01:29]} 23... Rxd1 {[%clk
0:00:42.3]} 24. Rxd1 {[%clk 0:01:27.8]} 24... Rd8 {[%clk 0:00:43.2]} 25. Rxd8
{[%clk 0:01:18.5]} 25... Qxd8 {[%clk 0:00:44.1]} 26. Be3 {[%clk 0:01:17.6]}
26... a5 {[%clk 0:00:43.8]} 27. b5 {[%clk 0:01:11.6]} 27... Qd1+ {[%clk
0:00:31.4]} 28. Kh2 {[%clk 0:01:11.2]} 28... h5 {[%clk 0:00:31.5]} 29. Bg5
{[%clk 0:00:30.9]} 29... Nh7 {[%clk 0:00:25]} 30. Be7 {[%clk 0:00:19.7]} 30...
Qd7 {[%clk 0:00:18.2]} 31. Bh4 {[%clk 0:00:16.6]} 31... cxb5 {[%clk 0:00:13.9]}
32. Qxb5 {[%clk 0:00:15.2]} 32... Qxb5 {[%clk 0:00:13.6]} 0-1

[Event "Early-Titled-Tuesday-Blitz-May-14-2024"]
[Site "Chess.com"]
[Date "2024.05.14"]
[Round "2"]
[White "klercaku"]
[Black "Gryffindorac8"]
[Result "1-0"]
[WhiteElo "2262"]
[BlackElo "2494"]
[TimeControl "180+1"]
[EndTime "8:17:49 PDT"]
[Termination "klercaku won by resignation"]

1. e4 {[%clk 0:03:00.9]} 1... c5 {[%clk 0:02:58.9]} 2. Nf3 {[%clk 0:02:57.5]}
2... d6 {[%clk 0:02:58.1]} 3. d4 {[%clk 0:02:56.5]} 3... cxd4 {[%clk 0:02:59]}
4. Nxd4 {[%clk 0:02:57]} 4... Nf6 {[%clk 0:02:59]} 5. Nc3 {[%clk 0:02:57]} 5...
a6 {[%clk 0:02:58.9]} 6. Be2 {[%clk 0:02:57.1]} 6... e5 {[%clk 0:02:57.5]} 7.
Nb3 {[%clk 0:02:56.9]} 7... Be7 {[%clk 0:02:57.6]} 8. Be3 {[%clk 0:02:55.9]}
8... Be6 {[%clk 0:02:54.9]} 9. O-O {[%clk 0:02:55.3]} 9... O-O {[%clk
0:02:49.2]} 10. f4 {[%clk 0:02:52.6]} 10... Qc7 {[%clk 0:02:48.9]} 11. f5 {[%clk
0:02:38.9]} 11... Bc4 {[%clk 0:02:48.5]} 12. g4 {[%clk 0:02:30]} 12... h6 {[%clk
0:02:32.7]} 13. h4 {[%clk 0:02:00.7]} 13... Nh7 {[%clk 0:02:09.2]} 14. g5 {[%clk
0:00:57.7]} 14... hxg5 {[%clk 0:02:00.1]} 15. hxg5 {[%clk 0:00:57.2]} 15... Nd7
{[%clk 0:00:55.5]} 16. Bxc4 {[%clk 0:00:34.1]} 16... Qxc4 {[%clk 0:00:54.4]} 17.
Qg4 {[%clk 0:00:33]} 17... Rfe8 {[%clk 0:00:26.4]} 18. f6 {[%clk 0:00:28.4]}
18... Ndxf6 {[%clk 0:00:22.3]} 19. gxf6 {[%clk 0:00:27.7]} 19... Nxf6 {[%clk
0:00:23.2]} 20. Qg2 {[%clk 0:00:24.4]} 20... b5 {[%clk 0:00:21]} 21. Bh6 {[%clk
0:00:18.9]} 21... Nh5 {[%clk 0:00:14.1]} 22. Nd5 {[%clk 0:00:15.9]} 22... Bf8
{[%clk 0:00:10.3]} 23. Bg5 {[%clk 0:00:09.3]} 23... Rac8 {[%clk 0:00:08.7]} 24.
Qg4 {[%clk 0:00:08.1]} 24... Nf4 {[%clk 0:00:07.1]} 25. Bxf4 {[%clk 0:00:06.9]}
25... exf4 {[%clk 0:00:07.1]} 26. Nf6+ {[%clk 0:00:06.7]} 1-0

[Event "Early-Titled-Tuesday-Blitz-May-14-2024"]
[Site "Chess.com"]
[Date "2024.05.14"]
[Round "2"]
[White "Gareth-Bale11"]
[Black "Grossboss19"]
[Result "0-1"]
[WhiteElo "2909"]
[BlackElo "2636"]
[TimeControl "180+1"]
[EndTime "8:17:50 PDT"]
[Termination "Grossboss19 won by resignation"]

1. d4 {[%clk 0:03:00.9]} 1... Nf6 {[%clk 0:02:55]} 2. c4 {[%clk 0:03:00.7]} 2...
e6 {[%clk 0:02:54.7]} 3. Nc3 {[%clk 0:03:01.1]} 3... Bb4 {[%clk 0:02:54.5]} 4.
a3 {[%clk 0:02:57.8]} 4... Bxc3+ {[%clk 0:02:52]} 5. bxc3 {[%clk 0:02:58.7]}
5... O-O {[%clk 0:02:52.4]} 6. f3 {[%clk 0:02:57.7]} 6... c5 {[%clk 0:02:51.9]}
7. e4 {[%clk 0:02:56.9]} 7... d6 {[%clk 0:02:45.1]} 8. Ne2 {[%clk 0:02:56.9]}
8... Nc6 {[%clk 0:02:43.6]} 9. Ng3 {[%clk 0:02:56.7]} 9... b6 {[%clk 0:02:42.7]}
10. Ra2 {[%clk 0:02:44]} 10... Ba6 {[%clk 0:02:38.8]} 11. Bg5 {[%clk 0:02:26.8]}
11... h6 {[%clk 0:02:33.1]} 12. h4 {[%clk 0:02:26.5]} 12... Na5 {[%clk
0:02:29.9]} 13. dxc5 {[%clk 0:02:11.3]} 13... dxc5 {[%clk 0:02:13.3]} 14. Rd2
{[%clk 0:02:09.6]} 14... Qc7 {[%clk 0:02:12.6]} 15. Kf2 {[%clk 0:01:47.2]} 15...
hxg5 {[%clk 0:01:51.9]} 16. hxg5 {[%clk 0:01:45.5]} 16... Nh7 {[%clk 0:01:51.8]}
17. e5 {[%clk 0:01:13.8]} 17... Qxe5 {[%clk 0:01:39.1]} 18. Bd3 {[%clk 0:01:01]}
18... g6 {[%clk 0:01:35.8]} 19. Rxh7 {[%clk 0:00:27.2]} 19... Kxh7 {[%clk
0:01:31.6]} 20. Qh1+ {[%clk 0:00:27.1]} 20... Kg8 {[%clk 0:01:21.8]} 21. Ne4
{[%clk 0:00:26.7]} 21... Qh8 {[%clk 0:01:14.9]} 22. Nf6+ {[%clk 0:00:21.6]}
22... Kg7 {[%clk 0:01:15]} 23. Qe1 {[%clk 0:00:17.6]} 23... Qh4+ {[%clk
0:01:14.1]} 24. g3 {[%clk 0:00:18]} 24... Qxg5 {[%clk 0:01:03.4]} 25. Ne4 {[%clk
0:00:17.2]} 25... Qe7 {[%clk 0:01:01]} 26. Qe3 {[%clk 0:00:15.3]} 26... e5
{[%clk 0:00:54.7]} 27. g4 {[%clk 0:00:14.6]} 27... Bb7 {[%clk 0:00:52.2]} 28.
Ng3 {[%clk 0:00:12.9]} 28... Rh8 {[%clk 0:00:48.9]} 29. Kg2 {[%clk 0:00:10.5]}
29... Rad8 {[%clk 0:00:42.9]} 30. Re2 {[%clk 0:00:10.3]} 30... Qf6 {[%clk
0:00:34.7]} 31. Be4 {[%clk 0:00:09.5]} 31... Nxc4 {[%clk 0:00:29.9]} 32. Qc1
{[%clk 0:00:07]} 32... Ba6 {[%clk 0:00:24.8]} 33. g5 {[%clk 0:00:05.9]} 33...
Qf4 {[%clk 0:00:24.7]} 0-1

[Event "Early-Titled-Tuesday-Blitz-May-14-2024"]
[Site "Chess.com"]
[Date "2024.05.14"]
[Round "2"]
[White "Art10ECHR"]
[Black "Mbneu"]
[Result "1-0"]
[WhiteElo "2504"]
[BlackElo "2220"]
[TimeControl "180+1"]
[EndTime "8:17:50 PDT"]
[Termination "Art10ECHR won by resignation"]

1. d4 {[%clk 0:03:00.9]} 1... Nf6 {[%clk 0:02:55.4]} 2. c4 {[%clk 0:03:00.5]}
2... c5 {[%clk 0:02:54.4]} 3. d5 {[%clk 0:02:58.2]} 3... e6 {[%clk 0:02:54.4]}
4. Nc3 {[%clk 0:02:58.9]} 4... exd5 {[%clk 0:02:54.3]} 5. cxd5 {[%clk
0:02:59.8]} 5... d6 {[%clk 0:02:54.6]} 6. h3 {[%clk 0:02:59.5]} 6... g6 {[%clk
0:02:54.8]} 7. Nf3 {[%clk 0:02:59.8]} 7... Bg7 {[%clk 0:02:54.8]} 8. Bf4 {[%clk
0:03:00.5]} 8... O-O {[%clk 0:02:53.8]} 9. e3 {[%clk 0:03:01.2]} 9... Re8 {[%clk
0:02:46.3]} 10. Nd2 {[%clk 0:03:00.5]} 10... Nbd7 {[%clk 0:02:28.2]} 11. Be2
{[%clk 0:02:59.1]} 11... Ne5 {[%clk 0:02:25.9]} 12. O-O {[%clk 0:02:58.7]} 12...
a6 {[%clk 0:02:24.4]} 13. a4 {[%clk 0:02:58.4]} 13... Nfd7 {[%clk 0:02:21]} 14.
Bh2 {[%clk 0:02:55.4]} 14... g5 {[%clk 0:02:20.6]} 15. f4 {[%clk 0:02:31]} 15...
gxf4 {[%clk 0:02:15.1]} 16. exf4 {[%clk 0:02:31]} 16... Ng6 {[%clk 0:02:14.8]}
17. Nc4 {[%clk 0:02:31.5]} 17... Nb6 {[%clk 0:02:05.9]} 18. Na3 {[%clk 0:02:21]}
18... Bf5 {[%clk 0:01:58.1]} 19. a5 {[%clk 0:02:20.7]} 19... Nd7 {[%clk
0:01:48.7]} 20. Nc4 {[%clk 0:02:21.2]} 20... Bd4+ {[%clk 0:01:43]} 21. Kh1
{[%clk 0:02:21]} 21... Qh4 {[%clk 0:01:43.4]} 22. Bg4 {[%clk 0:02:08.2]} 22...
Bxg4 {[%clk 0:01:30.6]} 23. Qxg4 {[%clk 0:02:05.5]} 23... Nf6 {[%clk 0:01:28.4]}
24. Qxh4 {[%clk 0:01:51.6]} 24... Nxh4 {[%clk 0:01:29.3]} 25. f5 {[%clk
0:01:43.4]} 25... Bxc3 {[%clk 0:01:14.2]} 26. bxc3 {[%clk 0:01:44.3]} 26... Re2
{[%clk 0:01:13]} 27. Rf4 {[%clk 0:01:44.8]} 27... Nxg2 {[%clk 0:01:10.6]} 28.
Rg1 {[%clk 0:01:45]} 28... Nxd5 {[%clk 0:01:05.6]} 29. Rg4+ {[%clk 0:01:44.3]}
29... Kh8 {[%clk 0:01:01.3]} 30. Nxd6 {[%clk 0:01:40.8]} 30... Rf8 {[%clk
0:00:55.3]} 31. R4xg2 {[%clk 0:01:32.9]} 31... Rxg2 {[%clk 0:00:47.9]} 32. Rxg2
{[%clk 0:01:32.7]} 32... f6 {[%clk 0:00:48.1]} 33. c4 {[%clk 0:01:27.6]} 33...
Ne3 {[%clk 0:00:47.4]} 34. Re2 {[%clk 0:01:22.5]} 34... Nd1 {[%clk 0:00:43.7]}
35. Re7 {[%clk 0:01:17.7]} 35... h5 {[%clk 0:00:36.6]} 36. Rxb7 {[%clk
0:01:16.7]} 36... Ne3 {[%clk 0:00:21.4]} 37. Bf4 {[%clk 0:01:14.1]} 37... Nc2
{[%clk 0:00:15.8]} 38. Rb6 {[%clk 0:01:05.2]} 38... Nd4 {[%clk 0:00:13.9]} 39.
Rxa6 {[%clk 0:01:04.9]} 39... Ne2 {[%clk 0:00:12.8]} 40. Bh2 {[%clk 0:00:59.6]}
40... Rb8 {[%clk 0:00:11.2]} 41. Rb6 {[%clk 0:00:58.3]} 41... Ra8 {[%clk
0:00:10.2]} 42. a6 {[%clk 0:00:56.8]} 42... Nd4 {[%clk 0:00:09.8]} 43. Nb5
{[%clk 0:00:52.4]} 43... Nf3 {[%clk 0:00:06.3]} 44. Rb8+ {[%clk 0:00:50.9]}
44... Rxb8 {[%clk 0:00:05.8]} 45. Bxb8 {[%clk 0:00:51.8]} 1-0

[Event "Early-Titled-Tuesday-Blitz-May-14-2024"]
[Site "Chess.com"]
[Date "2024.05.14"]
[Round "2"]
[White "zajka-molotok"]
[Black "crosky"]
[Result "1-0"]
[WhiteElo "2539"]
[BlackElo "2310"]
[TimeControl "180+1"]
[EndTime "8:17:52 PDT"]
[Termination "zajka-molotok won on time"]

1. e4 {[%clk 0:03:00.9]} 1... c5 {[%clk 0:02:58.1]} 2. Nf3 {[%clk 0:02:59.9]}
2... e6 {[%clk 0:02:58.3]} 3. g3 {[%clk 0:02:58.9]} 3... d5 {[%clk 0:02:57.2]}
4. exd5 {[%clk 0:02:58.4]} 4... exd5 {[%clk 0:02:56]} 5. d4 {[%clk 0:02:58.9]}
5... Nc6 {[%clk 0:02:53.8]} 6. Bg2 {[%clk 0:02:58.8]} 6... Nf6 {[%clk
0:02:51.6]} 7. O-O {[%clk 0:02:57.8]} 7... Be7 {[%clk 0:02:39.1]} 8. dxc5 {[%clk
0:02:56.6]} 8... O-O {[%clk 0:02:28.4]} 9. Nc3 {[%clk 0:02:44.2]} 9... Bxc5
{[%clk 0:02:26.4]} 10. a3 {[%clk 0:02:40.6]} 10... h6 {[%clk 0:02:23.3]} 11. b4
{[%clk 0:02:35.7]} 11... Bb6 {[%clk 0:02:19]} 12. Bb2 {[%clk 0:02:32.2]} 12...
Bf5 {[%clk 0:02:11.1]} 13. Na4 {[%clk 0:02:16.3]} 13... Bc7 {[%clk 0:02:10.7]}
14. Nc5 {[%clk 0:02:14.6]} 14... Rb8 {[%clk 0:01:42.4]} 15. Re1 {[%clk
0:02:09.1]} 15... Ne4 {[%clk 0:01:39.2]} 16. Nb3 {[%clk 0:01:59.1]} 16... Re8
{[%clk 0:01:29.8]} 17. Nfd4 {[%clk 0:01:58.2]} 17... Bg6 {[%clk 0:01:26]} 18.
Rc1 {[%clk 0:01:40.8]} 18... Bb6 {[%clk 0:01:26]} 19. c4 {[%clk 0:01:31.5]}
19... dxc4 {[%clk 0:01:22.6]} 20. Rxc4 {[%clk 0:01:32]} 20... Qf6 {[%clk
0:01:13.1]} 21. Qf3 {[%clk 0:01:25.8]} 21... Nxd4 {[%clk 0:00:56.5]} 22. Bxd4
{[%clk 0:01:19.5]} 22... Qxf3 {[%clk 0:00:52.2]} 23. Bxf3 {[%clk 0:01:18.6]}
23... Bxd4 {[%clk 0:00:51.1]} 24. Rxd4 {[%clk 0:01:12.2]} 24... Nf6 {[%clk
0:00:45.2]} 25. Rxe8+ {[%clk 0:01:10.9]} 25... Nxe8 {[%clk 0:00:39.1]} 26. Rd7
{[%clk 0:01:09.7]} 26... Rc8 {[%clk 0:00:13.8]} 27. Bxb7 {[%clk 0:01:08.7]}
27... Rc3 {[%clk 0:00:13.9]} 28. Nc5 {[%clk 0:01:08]} 28... Nf6 {[%clk
0:00:13.4]} 29. Rd8+ {[%clk 0:01:05.8]} 29... Kh7 {[%clk 0:00:13.9]} 30. a4
{[%clk 0:01:04.5]} 30... Ng4 {[%clk 0:00:09.7]} 31. h3 {[%clk 0:01:01.3]} 31...
Ne5 {[%clk 0:00:09.9]} 32. Ra8 {[%clk 0:00:56.3]} 32... Rc1+ {[%clk 0:00:06.5]}
33. Kg2 {[%clk 0:00:56.1]} 33... Rc2 {[%clk 0:00:06.6]} 34. Rxa7 {[%clk
0:00:53.4]} 34... Nc4 {[%clk 0:00:06.8]} 35. Be4 {[%clk 0:00:44]} 35... Bxe4+
{[%clk 0:00:03.4]} 36. Nxe4 {[%clk 0:00:44.9]} 36... Rb2 {[%clk 0:00:01.9]} 37.
b5 {[%clk 0:00:41.4]} 37... f5 {[%clk 0:00:02]} 38. Nc5 {[%clk 0:00:38.9]} 1-0